[Event "*** SCC Grand Prix: Titled Tuesday Blitz"]
[Site "Chess.com"]
[Date "2020.07.21"]
[Round "6"]
[White "SanchezKelvin"]
[Black "Vision_64"]
[Result "1-0"]
[WhiteElo "2396"]
[BlackElo "2213"]
[TimeControl "180+1"]
[EndTime "11:06:23 PDT"]
[Termination "SanchezKelvin won by resignation"]

1. d4 {[%clk 0:02:57.9]} 1... Nf6 {[%clk 0:02:59.6]} 2. c4 {[%clk 0:02:57]} 2...
e6 {[%clk 0:03:00.2]} 3. Nf3 {[%clk 0:02:52.7]} 3... b6 {[%clk 0:02:59.7]} 4. g3
{[%clk 0:02:52.4]} 4... Bb7 {[%clk 0:02:59.3]} 5. Bg2 {[%clk 0:02:52.5]} 5... c5
{[%clk 0:03:00]} 6. d5 {[%clk 0:02:51.4]} 6... exd5 {[%clk 0:02:59.2]} 7. Nh4
{[%clk 0:02:51.6]} 7... d6 {[%clk 0:02:54]} 8. O-O {[%clk 0:02:50.1]} 8... g6
{[%clk 0:02:52.4]} 9. Nc3 {[%clk 0:02:49.2]} 9... Bg7 {[%clk 0:02:51.4]} 10.
Nxd5 {[%clk 0:02:49.5]} 10... Nxd5 {[%clk 0:02:49.8]} 11. Bxd5 {[%clk
0:02:48.3]} 11... Bxd5 {[%clk 0:02:36.6]} 12. Qxd5 {[%clk 0:02:47.7]} 12... Nd7
{[%clk 0:02:36.5]} 13. Qxd6 {[%clk 0:02:46.5]} 13... Qe7 {[%clk 0:02:25.6]} 14.
Qxe7+ {[%clk 0:02:46.2]} 14... Kxe7 {[%clk 0:02:25.6]} 15. Bg5+ {[%clk
0:02:44.7]} 15... f6 {[%clk 0:02:21.8]} 16. Be3 {[%clk 0:02:40.1]} 16... Ne5
{[%clk 0:02:19.8]} 17. b3 {[%clk 0:02:38.2]} 17... Rad8 {[%clk 0:02:07.9]} 18.
Rad1 {[%clk 0:02:36.5]} 18... Rxd1 {[%clk 0:01:44.4]} 19. Rxd1 {[%clk
0:02:20.8]} 19... Rd8 {[%clk 0:01:43]} 20. Rxd8 {[%clk 0:02:19.8]} 20... Kxd8
{[%clk 0:01:42.6]} 21. Ng2 {[%clk 0:02:16.5]} 21... g5 {[%clk 0:01:32.6]} 22.
Bd2 {[%clk 0:02:15.1]} 22... Nc6 {[%clk 0:01:27.3]} 23. Bc3 {[%clk 0:02:13.7]}
23... Ke7 {[%clk 0:01:24.2]} 24. Ne3 {[%clk 0:02:13]} 24... Ke6 {[%clk
0:01:19.1]} 25. Nd5 {[%clk 0:02:11.5]} 25... Ne5 {[%clk 0:01:13.5]} 26. Nc7+
{[%clk 0:02:04.7]} 26... Kd7 {[%clk 0:01:10.6]} 27. Bxe5 {[%clk 0:02:03.1]}
27... fxe5 {[%clk 0:01:09.6]} 28. Nd5 {[%clk 0:02:03.4]} 28... e4 {[%clk
0:01:03.8]} 29. f4 {[%clk 0:01:53.4]} 29... exf3 {[%clk 0:00:56.5]} 30. exf3
{[%clk 0:01:53.1]} 30... Ke6 {[%clk 0:00:53.3]} 31. Kf2 {[%clk 0:01:50.4]} 31...
Bd4+ {[%clk 0:00:44.3]} 32. Ke2 {[%clk 0:01:50.4]} 32... Ke5 {[%clk 0:00:33.5]}
33. Kd3 {[%clk 0:01:46.9]} 33... h5 {[%clk 0:00:30.9]} 34. h3 {[%clk 0:01:45.7]}
34... Bf2 {[%clk 0:00:20.4]} 35. g4 {[%clk 0:01:42.8]} 35... h4 {[%clk
0:00:19.4]} 36. Ke2 {[%clk 0:01:33.2]} 36... Bd4 {[%clk 0:00:19.3]} 37. f4+
{[%clk 0:01:32.8]} 37... gxf4 {[%clk 0:00:18.9]} 38. Kf3 {[%clk 0:01:32.8]}
38... Bb2 {[%clk 0:00:16.9]} 39. Nxf4 {[%clk 0:01:29.3]} 39... Kf6 {[%clk
0:00:16.8]} 40. Nd5+ {[%clk 0:01:28.3]} 40... Kg5 {[%clk 0:00:16.7]} 41. Ke4
{[%clk 0:01:28.3]} 41... Bd4 {[%clk 0:00:15.8]} 42. b4 {[%clk 0:01:26.4]} 42...
Bg1 {[%clk 0:00:14.3]} 43. b5 {[%clk 0:01:26.1]} 43... Bd4 {[%clk 0:00:14.2]}
44. Ne7 {[%clk 0:01:25.7]} 44... Bg1 {[%clk 0:00:07.8]} 45. Nc8 {[%clk
0:01:24.5]} 45... Kf6 {[%clk 0:00:06.5]} 46. Nxa7 {[%clk 0:01:24.2]} 46... Ke7
{[%clk 0:00:06.4]} 47. Nc8+ {[%clk 0:01:24.3]} 47... Kd8 {[%clk 0:00:06.1]} 48.
Nxb6 {[%clk 0:01:24.4]} 48... Kc7 {[%clk 0:00:06.8]} 49. Nd5+ {[%clk 0:01:24.6]}
49... Kb7 {[%clk 0:00:06.9]} 50. g5 {[%clk 0:01:25]} 50... Bd4 {[%clk
0:00:05.6]} 51. g6 {[%clk 0:01:25.2]} 51... Ka7 {[%clk 0:00:05]} 52. Nc7 {[%clk
0:01:24.6]} 52... Kb7 {[%clk 0:00:04.9]} 53. Ne6 {[%clk 0:01:24.9]} 1-0

[Event "*** SCC Grand Prix: Titled Tuesday Blitz"]
[Site "Chess.com"]
[Date "2020.07.21"]
[Round "6"]
[White "tandaleo"]
[Black "elohunter1999"]
[Result "0-1"]
[WhiteElo "2316"]
[BlackElo "2476"]
[TimeControl "180+1"]
[EndTime "11:06:24 PDT"]
[Termination "elohunter1999 won by checkmate"]

1. d4 {[%clk 0:03:00.9]} 1... Nf6 {[%clk 0:02:57.1]} 2. c4 {[%clk 0:02:59.9]}
2... g6 {[%clk 0:02:57.3]} 3. Nc3 {[%clk 0:02:58.3]} 3... d5 {[%clk 0:02:57.7]}
4. cxd5 {[%clk 0:02:54.1]} 4... Nxd5 {[%clk 0:02:58.6]} 5. Na4 {[%clk
0:02:54.2]} 5... Bg7 {[%clk 0:02:58]} 6. e4 {[%clk 0:02:54]} 6... Nb6 {[%clk
0:02:56.6]} 7. Nxb6 {[%clk 0:02:53.8]} 7... axb6 {[%clk 0:02:54.9]} 8. Be3
{[%clk 0:02:53.6]} 8... O-O {[%clk 0:02:52.9]} 9. Bc4 {[%clk 0:02:49]} 9... c5
{[%clk 0:02:00.2]} 10. Ne2 {[%clk 0:02:47.7]} 10... Nc6 {[%clk 0:01:53.1]} 11.
dxc5 {[%clk 0:02:36.9]} 11... bxc5 {[%clk 0:01:47.7]} 12. O-O {[%clk 0:02:16.4]}
12... Qb6 {[%clk 0:01:27.6]} 13. Rb1 {[%clk 0:02:12.4]} 13... Bg4 {[%clk
0:01:26.5]} 14. f3 {[%clk 0:02:10.9]} 14... Rfd8 {[%clk 0:01:24.9]} 15. Qc2
{[%clk 0:02:10.1]} 15... Bd7 {[%clk 0:01:13.3]} 16. a3 {[%clk 0:02:09.6]} 16...
Ne5 {[%clk 0:01:02.5]} 17. Bd5 {[%clk 0:01:41.1]} 17... e6 {[%clk 0:00:58.7]}
18. Ba2 {[%clk 0:01:16.2]} 18... Ba4 {[%clk 0:00:58.1]} 19. Qxc5 {[%clk
0:01:13.2]} 19... Qxc5 {[%clk 0:00:57.9]} 20. Bxc5 {[%clk 0:01:13.1]} 20... Nd3
{[%clk 0:00:58.8]} 21. Be3 {[%clk 0:01:01.5]} 21... Bc2 {[%clk 0:00:57.6]} 22.
Bc4 {[%clk 0:00:11.7]} 22... Bxb1 {[%clk 0:00:56.3]} 23. Rxb1 {[%clk 0:00:11.5]}
23... Nxb2 {[%clk 0:00:54.9]} 24. Bb5 {[%clk 0:00:10.5]} 24... Rxa3 {[%clk
0:00:51.7]} 25. Bf2 {[%clk 0:00:07.8]} 25... Rd1+ {[%clk 0:00:47.5]} 26. Rxd1
{[%clk 0:00:07.4]} 26... Nxd1 {[%clk 0:00:48.4]} 27. Nf4 {[%clk 0:00:07.6]}
27... Ra1 {[%clk 0:00:42.7]} 28. Bf1 {[%clk 0:00:07.1]} 28... b5 {[%clk
0:00:34.5]} 29. Bc5 {[%clk 0:00:05.9]} 29... b4 {[%clk 0:00:33.3]} 30. Bxb4
{[%clk 0:00:05.3]} 30... Bd4+ {[%clk 0:00:33.1]} 31. Kh1 {[%clk 0:00:05.6]}
31... Nf2+ {[%clk 0:00:33.1]} 32. Kg1 {[%clk 0:00:05.5]} 32... Nh3+ {[%clk
0:00:33.8]} 33. Kh1 {[%clk 0:00:05.7]} 33... Rxf1# {[%clk 0:00:34.7]} 0-1

[Event "*** SCC Grand Prix: Titled Tuesday Blitz"]
[Site "Chess.com"]
[Date "2020.07.21"]
[Round "6"]
[White "Eternauta2400"]
[Black "dpopadic"]
[Result "1-0"]
[WhiteElo "2562"]
[BlackElo "2376"]
[TimeControl "180+1"]
[EndTime "11:06:26 PDT"]
[Termination "Eternauta2400 won by resignation"]

1. c4 {[%clk 0:03:00.9]} 1... Nf6 {[%clk 0:02:59.4]} 2. Nc3 {[%clk 0:03:00.6]}
2... g6 {[%clk 0:02:59.4]} 3. e4 {[%clk 0:03:00.5]} 3... d6 {[%clk 0:02:59.9]}
4. d4 {[%clk 0:03:00.6]} 4... Bg7 {[%clk 0:03:00.6]} 5. Nf3 {[%clk 0:03:01]}
5... O-O {[%clk 0:03:00.8]} 6. Be2 {[%clk 0:03:01.5]} 6... e5 {[%clk 0:03:00.6]}
7. d5 {[%clk 0:03:00.9]} 7... a5 {[%clk 0:03:00.2]} 8. Bg5 {[%clk 0:03:00.3]}
8... h6 {[%clk 0:02:59.6]} 9. Be3 {[%clk 0:03:00.3]} 9... Na6 {[%clk 0:02:59.7]}
10. Nd2 {[%clk 0:03:00]} 10... Nd7 {[%clk 0:02:58.9]} 11. O-O {[%clk 0:02:59.4]}
11... Nac5 {[%clk 0:02:51.3]} 12. Rb1 {[%clk 0:02:56]} 12... a4 {[%clk
0:02:51.3]} 13. b4 {[%clk 0:02:52.9]} 13... axb3 {[%clk 0:02:49.3]} 14. axb3
{[%clk 0:02:53.3]} 14... Nf6 {[%clk 0:02:41]} 15. b4 {[%clk 0:02:50.1]} 15...
Ncd7 {[%clk 0:02:41]} 16. c5 {[%clk 0:02:47.4]} 16... Ne8 {[%clk 0:02:29.1]} 17.
Nc4 {[%clk 0:02:42.3]} 17... Qe7 {[%clk 0:02:26.3]} 18. c6 {[%clk 0:02:38.9]}
18... Ndf6 {[%clk 0:02:16.9]} 19. b5 {[%clk 0:02:26]} 19... b6 {[%clk
0:02:15.6]} 20. Bxb6 {[%clk 0:02:26]} 20... cxb6 {[%clk 0:02:12.6]} 21. Nxb6
{[%clk 0:02:26.4]} 21... Rb8 {[%clk 0:02:11.5]} 22. Nxc8 {[%clk 0:02:25.2]}
22... Rxc8 {[%clk 0:02:10.9]} 23. b6 {[%clk 0:02:25.7]} 23... Kh7 {[%clk
0:01:53.5]} 24. Ra1 {[%clk 0:02:25]} 24... Qd8 {[%clk 0:01:51.1]} 25. Qb3 {[%clk
0:02:22.2]} 25... Rb8 {[%clk 0:01:48.8]} 26. Rfb1 {[%clk 0:02:18.4]} 26... Nh5
{[%clk 0:01:39.1]} 27. Ra7 {[%clk 0:02:15.7]} 27... Qg5 {[%clk 0:01:21.5]} 28.
Bf1 {[%clk 0:02:05.9]} 28... Nf4 {[%clk 0:01:20.8]} 29. g3 {[%clk 0:02:06]}
29... h5 {[%clk 0:01:14.7]} 30. c7 {[%clk 0:02:04]} 30... Rc8 {[%clk 0:01:03.8]}
31. b7 {[%clk 0:01:59.1]} 31... Nxc7 {[%clk 0:01:00.8]} 32. bxc8=Q {[%clk
0:01:56]} 32... Rxc8 {[%clk 0:01:00.8]} 33. Qc4 {[%clk 0:01:50.3]} 33... Qd8
{[%clk 0:00:57.9]} 34. gxf4 {[%clk 0:01:13.1]} 34... exf4 {[%clk 0:00:43.9]} 35.
Qd3 {[%clk 0:01:11]} 35... Qf6 {[%clk 0:00:31.5]} 36. Ne2 {[%clk 0:01:07]} 36...
f3 {[%clk 0:00:29.7]} 37. Ng3 {[%clk 0:01:00.6]} 37... h4 {[%clk 0:00:28.7]} 38.
Rbb7 {[%clk 0:01:00.3]} 38... hxg3 {[%clk 0:00:25.9]} 39. hxg3 {[%clk
0:01:00.4]} 39... Qd8 {[%clk 0:00:22.5]} 40. Qxf3 {[%clk 0:00:55.7]} 40... Kg8
{[%clk 0:00:22.1]} 41. Bh3 {[%clk 0:00:54.3]} 41... Ra8 {[%clk 0:00:16.8]} 42.
Rxc7 {[%clk 0:00:51.3]} 42... f5 {[%clk 0:00:16]} 43. Rxg7+ {[%clk 0:00:50.2]}
1-0

[Event "*** SCC Grand Prix: Titled Tuesday Blitz"]
[Site "Chess.com"]
[Date "2020.07.21"]
[Round "6"]
[White "Omk124"]
[Black "NotFischer"]
[Result "1-0"]
[WhiteElo "2351"]
[BlackElo "2250"]
[TimeControl "180+1"]
[EndTime "11:06:28 PDT"]
[Termination "Omk124 won on time"]

1. Nf3 {[%clk 0:03:00.9]} 1... Nf6 {[%clk 0:02:59.5]} 2. g3 {[%clk 0:03:00.9]}
2... d6 {[%clk 0:02:59.5]} 3. Bg2 {[%clk 0:03:01.5]} 3... g6 {[%clk 0:03:00]} 4.
O-O {[%clk 0:03:02.1]} 4... Bg7 {[%clk 0:03:00.9]} 5. d4 {[%clk 0:03:02.6]} 5...
O-O {[%clk 0:03:01.8]} 6. c4 {[%clk 0:03:03.2]} 6... c6 {[%clk 0:03:02.3]} 7.
Nc3 {[%clk 0:03:03.9]} 7... Nbd7 {[%clk 0:03:02.5]} 8. e4 {[%clk 0:03:04.3]}
8... Qc7 {[%clk 0:03:02.8]} 9. Be3 {[%clk 0:03:03.3]} 9... e5 {[%clk 0:03:02.7]}
10. h3 {[%clk 0:03:03.9]} 10... Re8 {[%clk 0:03:01.4]} 11. Re1 {[%clk
0:03:02.7]} 11... exd4 {[%clk 0:02:58]} 12. Nxd4 {[%clk 0:03:02.1]} 12... Nc5
{[%clk 0:02:58.3]} 13. Qc2 {[%clk 0:03:02.3]} 13... a5 {[%clk 0:02:58.5]} 14.
Rad1 {[%clk 0:03:02.1]} 14... Bd7 {[%clk 0:02:58.4]} 15. Bc1 {[%clk 0:03:01.9]}
15... Rad8 {[%clk 0:02:57.3]} 16. a3 {[%clk 0:02:58.7]} 16... h6 {[%clk
0:02:51]} 17. b4 {[%clk 0:02:57.8]} 17... axb4 {[%clk 0:02:51.9]} 18. axb4
{[%clk 0:02:58.7]} 18... Ne6 {[%clk 0:02:52.1]} 19. Be3 {[%clk 0:02:56.9]} 19...
Nxd4 {[%clk 0:02:51.3]} 20. Bxd4 {[%clk 0:02:57.8]} 20... Be6 {[%clk 0:02:50.3]}
21. c5 {[%clk 0:02:54.9]} 21... dxc5 {[%clk 0:02:22]} 22. Bxc5 {[%clk
0:02:55.8]} 22... Rxd1 {[%clk 0:02:17.2]} 23. Rxd1 {[%clk 0:02:54.8]} 23... Rd8
{[%clk 0:02:17.3]} 24. Na4 {[%clk 0:02:50.1]} 24... Nd7 {[%clk 0:02:10.7]} 25.
Be3 {[%clk 0:02:47.7]} 25... Kh7 {[%clk 0:01:21.3]} 26. b5 {[%clk 0:02:46.5]}
26... Ne5 {[%clk 0:01:03.3]} 27. Rxd8 {[%clk 0:02:25.2]} 27... Qxd8 {[%clk
0:01:02.4]} 28. b6 {[%clk 0:02:11.9]} 28... Nc4 {[%clk 0:00:56.1]} 29. Bc5
{[%clk 0:01:59.8]} 29... Bd4 {[%clk 0:00:53.4]} 30. h4 {[%clk 0:01:29.3]} 30...
Bxc5 {[%clk 0:00:50.2]} 31. Nxc5 {[%clk 0:01:30.2]} 31... Nxb6 {[%clk
0:00:27.5]} 32. Nxb7 {[%clk 0:01:30.1]} 32... Qc7 {[%clk 0:00:21.8]} 33. Nc5
{[%clk 0:01:29.9]} 33... Bc4 {[%clk 0:00:16.1]} 34. Na4 {[%clk 0:01:23.3]} 34...
Bb5 {[%clk 0:00:13.9]} 35. Nc5 {[%clk 0:01:21.6]} 35... Qe7 {[%clk 0:00:12]} 36.
h5 {[%clk 0:01:19.2]} 36... Nc4 {[%clk 0:00:11.3]} 37. hxg6+ {[%clk 0:01:19.2]}
37... fxg6 {[%clk 0:00:11.9]} 38. Nd3 {[%clk 0:01:18.5]} 38... Ne5 {[%clk
0:00:08.5]} 39. Nf4 {[%clk 0:01:18.1]} 39... Qf6 {[%clk 0:00:06.3]} 40. Qc5
{[%clk 0:01:16.3]} 40... h5 {[%clk 0:00:05.2]} 41. Qa7+ {[%clk 0:01:15.9]} 41...
Kh6 {[%clk 0:00:05]} 42. Qc7 {[%clk 0:01:14.2]} 42... g5 {[%clk 0:00:03.3]} 43.
Nh3 {[%clk 0:01:13.8]} 43... Nf3+ {[%clk 0:00:02.8]} 44. Bxf3 {[%clk 0:01:13.5]}
44... Qxf3 {[%clk 0:00:03.1]} 45. Qd6+ {[%clk 0:01:13.7]} 45... Kg7 {[%clk
0:00:02.8]} 46. Nxg5 {[%clk 0:01:13.8]} 46... Qe2 {[%clk 0:00:01.6]} 47. Qe5+
{[%clk 0:01:11.5]} 47... Kf8 {[%clk 0:00:01.4]} 48. Ne6+ {[%clk 0:01:10.1]} 1-0

[Event "*** SCC Grand Prix: Titled Tuesday Blitz"]
[Site "Chess.com"]
[Date "2020.07.21"]
[Round "6"]
[White "Reader777"]
[Black "26andrej26"]
[Result "1-0"]
[WhiteElo "2665"]
[BlackElo "2527"]
[TimeControl "180+1"]
[EndTime "11:06:29 PDT"]
[Termination "Reader777 won on time"]

1. d4 {[%clk 0:03:00.9]} 1... Nf6 {[%clk 0:03:00.3]} 2. c4 {[%clk 0:03:01]} 2...
g6 {[%clk 0:03:00.9]} 3. Nc3 {[%clk 0:03:00.2]} 3... Bg7 {[%clk 0:03:01.5]} 4.
e4 {[%clk 0:02:58.9]} 4... d6 {[%clk 0:03:02.2]} 5. f4 {[%clk 0:02:57.3]} 5...
O-O {[%clk 0:03:02.4]} 6. Nf3 {[%clk 0:02:56.2]} 6... c5 {[%clk 0:03:03]} 7. d5
{[%clk 0:02:55.2]} 7... e6 {[%clk 0:03:03.5]} 8. Be2 {[%clk 0:02:54.2]} 8...
exd5 {[%clk 0:03:03.6]} 9. cxd5 {[%clk 0:02:54.4]} 9... Bg4 {[%clk 0:03:04.3]}
10. e5 {[%clk 0:02:53.7]} 10... Ne8 {[%clk 0:01:48.5]} 11. Ng5 {[%clk
0:02:35.1]} 11... Bxe2 {[%clk 0:01:45.7]} 12. Qxe2 {[%clk 0:02:35]} 12... h6
{[%clk 0:01:22.8]} 13. e6 {[%clk 0:02:20.6]} 13... hxg5 {[%clk 0:01:10.4]} 14.
e7 {[%clk 0:02:20.1]} 14... Qa5 {[%clk 0:00:55.9]} 15. exf8=Q+ {[%clk 0:02:19]}
15... Kxf8 {[%clk 0:00:55]} 16. O-O {[%clk 0:02:18]} 16... gxf4 {[%clk 0:00:50]}
17. Bxf4 {[%clk 0:02:15.7]} 17... Nd7 {[%clk 0:00:48.4]} 18. Rae1 {[%clk
0:02:08.2]} 18... Ne5 {[%clk 0:00:47.7]} 19. Ne4 {[%clk 0:02:05.7]} 19... Kg8
{[%clk 0:00:36.7]} 20. Bxe5 {[%clk 0:01:44]} 20... Bxe5 {[%clk 0:00:36.4]} 21.
Qf3 {[%clk 0:01:43.4]} 21... f5 {[%clk 0:00:19]} 22. Ng5 {[%clk 0:01:42]} 22...
Nf6 {[%clk 0:00:19.1]} 23. Qh3 {[%clk 0:01:38.4]} 23... Qc7 {[%clk 0:00:11.6]}
24. Nf3 {[%clk 0:01:28.1]} 24... Ng4 {[%clk 0:00:08]} 25. Nxe5 {[%clk
0:01:22.2]} 25... Nxe5 {[%clk 0:00:08.9]} 26. Qg3 {[%clk 0:01:21.8]} 26... Qg7
{[%clk 0:00:05.6]} 27. h4 {[%clk 0:01:14.4]} 27... Rf8 {[%clk 0:00:05.5]} 28.
Qg5 {[%clk 0:01:10.3]} 28... Qf6 {[%clk 0:00:02.3]} 29. Qg3 {[%clk 0:01:07.4]}
29... Qg7 {[%clk 0:00:02.5]} 30. Re2 {[%clk 0:01:03.2]} 30... Qh6 {[%clk
0:00:02.8]} 31. Rfe1 {[%clk 0:01:01.3]} 31... f4 {[%clk 0:00:02]} 32. Qh3 {[%clk
0:00:55.3]} 32... f3 {[%clk 0:00:02.1]} 33. Qe6+ {[%clk 0:00:52.9]} 33... Kh8
{[%clk 0:00:02]} 34. Rf2 {[%clk 0:00:51.6]} 34... Qxh4 {[%clk 0:00:01.6]} 35.
Qxd6 {[%clk 0:00:48.8]} 35... Rf5 {[%clk 0:00:01.4]} 36. Rxe5 {[%clk 0:00:45.1]}
1-0

[Event "*** SCC Grand Prix: Titled Tuesday Blitz"]
[Site "Chess.com"]
[Date "2020.07.21"]
[Round "6"]
[White "m_ezat"]
[Black "Funo09"]
[Result "0-1"]
[WhiteElo "2575"]
[BlackElo "2766"]
[TimeControl "180+1"]
[EndTime "11:06:33 PDT"]
[Termination "Funo09 won on time"]

1. d4 {[%clk 0:03:00.9]} 1... Nf6 {[%clk 0:02:58.4]} 2. c4 {[%clk 0:03:01.3]}
2... Nc6 {[%clk 0:02:58.8]} 3. Nf3 {[%clk 0:03:00.4]} 3... d6 {[%clk 0:02:55]}
4. Nc3 {[%clk 0:02:58.5]} 4... Bg4 {[%clk 0:02:50]} 5. d5 {[%clk 0:02:55]} 5...
Nb8 {[%clk 0:02:42.3]} 6. Nd4 {[%clk 0:02:48.8]} 6... g6 {[%clk 0:02:41.3]} 7.
Qb3 {[%clk 0:02:46]} 7... Qc8 {[%clk 0:02:38.2]} 8. h3 {[%clk 0:02:18.8]} 8...
Bd7 {[%clk 0:02:38.1]} 9. Qd1 {[%clk 0:02:10.2]} 9... Bg7 {[%clk 0:02:38.5]} 10.
Nb3 {[%clk 0:02:10.4]} 10... O-O {[%clk 0:02:38.3]} 11. e4 {[%clk 0:02:10.5]}
11... a5 {[%clk 0:02:37.6]} 12. Be2 {[%clk 0:02:03.1]} 12... a4 {[%clk
0:02:36.8]} 13. Nd4 {[%clk 0:02:02.9]} 13... Na6 {[%clk 0:02:35.8]} 14. O-O
{[%clk 0:02:03]} 14... Nc5 {[%clk 0:02:35.1]} 15. Bf3 {[%clk 0:02:03.6]} 15...
c6 {[%clk 0:02:33.9]} 16. Re1 {[%clk 0:02:02.9]} 16... Qc7 {[%clk 0:02:31.6]}
17. Bf4 {[%clk 0:02:01.3]} 17... Qb6 {[%clk 0:02:26.7]} 18. Qd2 {[%clk
0:01:59.2]} 18... Qb4 {[%clk 0:02:24.6]} 19. Rac1 {[%clk 0:01:52]} 19... Rfe8
{[%clk 0:02:11.8]} 20. e5 {[%clk 0:01:48.3]} 20... dxe5 {[%clk 0:02:11.1]} 21.
Bxe5 {[%clk 0:01:48.8]} 21... Rac8 {[%clk 0:02:04.3]} 22. d6 {[%clk 0:01:37.8]}
22... Rcd8 {[%clk 0:01:37.3]} 23. a3 {[%clk 0:01:20.1]} 23... Qxc4 {[%clk
0:01:10.1]} 24. dxe7 {[%clk 0:00:46.4]} 24... Rxe7 {[%clk 0:01:07.7]} 25. Nd5
{[%clk 0:00:36]} 25... cxd5 {[%clk 0:00:58.1]} 26. Rxc4 {[%clk 0:00:32.9]} 26...
dxc4 {[%clk 0:00:59]} 27. Bc7 {[%clk 0:00:20.5]} 27... Rxe1+ {[%clk 0:00:56.1]}
28. Qxe1 {[%clk 0:00:21]} 28... Re8 {[%clk 0:00:57]} 29. Qb4 {[%clk 0:00:20.2]}
29... Nfe4 {[%clk 0:00:49]} 30. Ne2 {[%clk 0:00:16.5]} 30... b5 {[%clk
0:00:46.4]} 31. Bb6 {[%clk 0:00:15.5]} 31... Bf8 {[%clk 0:00:37.3]} 0-1

[Event "*** SCC Grand Prix: Titled Tuesday Blitz"]
[Site "Chess.com"]
[Date "2020.07.21"]
[Round "6"]
[White "Alberquintin"]
[Black "Falia-p"]
[Result "1-0"]
[WhiteElo "2488"]
[BlackElo "2320"]
[TimeControl "180+1"]
[EndTime "11:06:35 PDT"]
[Termination "Alberquintin won by resignation"]

1. c4 {[%clk 0:02:30.4]} 1... e5 {[%clk 0:02:57.9]} 2. Nc3 {[%clk 0:02:29.6]}
2... Nf6 {[%clk 0:02:57.2]} 3. Nf3 {[%clk 0:02:30]} 3... Nc6 {[%clk 0:02:57.2]}
4. g3 {[%clk 0:02:30.1]} 4... d5 {[%clk 0:02:57]} 5. cxd5 {[%clk 0:02:30.6]}
5... Nxd5 {[%clk 0:02:57.9]} 6. Bg2 {[%clk 0:02:30.6]} 6... Nb6 {[%clk
0:02:57.8]} 7. O-O {[%clk 0:02:31]} 7... Be7 {[%clk 0:02:58.2]} 8. d3 {[%clk
0:02:30.2]} 8... O-O {[%clk 0:02:57.9]} 9. a3 {[%clk 0:02:30.7]} 9... a5 {[%clk
0:02:56.9]} 10. Be3 {[%clk 0:02:29.3]} 10... Be6 {[%clk 0:02:49.8]} 11. Na4
{[%clk 0:02:27.8]} 11... f6 {[%clk 0:02:42.2]} 12. Rc1 {[%clk 0:02:23.2]} 12...
Rf7 {[%clk 0:02:37.9]} 13. Nxb6 {[%clk 0:02:20.1]} 13... cxb6 {[%clk 0:02:37.4]}
14. Nd2 {[%clk 0:02:20.7]} 14... Bf8 {[%clk 0:02:25.1]} 15. Qa4 {[%clk
0:02:12.2]} 15... Nd4 {[%clk 0:02:01.9]} 16. Bxd4 {[%clk 0:02:09.2]} 16... exd4
{[%clk 0:02:00.7]} 17. Qb5 {[%clk 0:01:55.4]} 17... Bc5 {[%clk 0:01:52.2]} 18.
b4 {[%clk 0:01:51.4]} 18... axb4 {[%clk 0:01:41.8]} 19. axb4 {[%clk 0:01:50.5]}
19... Bf8 {[%clk 0:01:27.1]} 20. Nc4 {[%clk 0:01:48.3]} 20... Ra2 {[%clk
0:01:23.2]} 21. Bf3 {[%clk 0:01:34.5]} 21... Bxc4 {[%clk 0:01:15.2]} 22. Qxc4
{[%clk 0:01:33]} 22... Rb2 {[%clk 0:01:12]} 23. Bd5 {[%clk 0:01:31.7]} 23... Qe7
{[%clk 0:01:07.9]} 24. Bxf7+ {[%clk 0:01:06.3]} 24... Qxf7 {[%clk 0:01:08.8]}
25. Qxf7+ {[%clk 0:01:06]} 25... Kxf7 {[%clk 0:01:09.3]} 26. Rc4 {[%clk
0:01:05.1]} 26... Rxe2 {[%clk 0:01:07.2]} 27. Rxd4 {[%clk 0:01:05.2]} 27... Rb2
{[%clk 0:01:01.2]} 28. Rc1 {[%clk 0:00:56.3]} 28... Bxb4 {[%clk 0:00:57.7]} 29.
Rc7+ {[%clk 0:00:56.4]} 29... Kg6 {[%clk 0:00:52.6]} 30. Rxb7 {[%clk 0:00:55]}
30... Bc5 {[%clk 0:00:51.1]} 31. Rf4 {[%clk 0:00:52.3]} 31... Rd2 {[%clk
0:00:47.3]} 32. Rd7 {[%clk 0:00:39.2]} 32... b5 {[%clk 0:00:38]} 33. Rd5 {[%clk
0:00:37]} 33... Rc2 {[%clk 0:00:34.5]} 34. d4 {[%clk 0:00:34.5]} 34... Ba3
{[%clk 0:00:26.8]} 35. Rxb5 {[%clk 0:00:34.2]} 35... Bc1 {[%clk 0:00:26.2]} 36.
Rg4+ {[%clk 0:00:33.5]} 36... Kf7 {[%clk 0:00:24.8]} 37. Rb7+ {[%clk 0:00:32.1]}
37... Ke6 {[%clk 0:00:25.2]} 38. Rgxg7 {[%clk 0:00:31.4]} 38... Be3 {[%clk
0:00:24.9]} 39. fxe3 {[%clk 0:00:29.8]} 39... Kd5 {[%clk 0:00:25.3]} 40. Rge7
{[%clk 0:00:28.5]} 1-0

[Event "*** SCC Grand Prix: Titled Tuesday Blitz"]
[Site "Chess.com"]
[Date "2020.07.21"]
[Round "6"]
[White "Logman74"]
[Black "MagnusSeinFanboy"]
[Result "0-1"]
[WhiteElo "2332"]
[BlackElo "2522"]
[TimeControl "180+1"]
[EndTime "11:06:35 PDT"]
[Termination "MagnusSeinFanboy won by checkmate"]

1. d4 {[%clk 0:03:00.9]} 1... Nf6 {[%clk 0:02:59]} 2. Bg5 {[%clk 0:02:58.9]}
2... d5 {[%clk 0:02:56.9]} 3. Bxf6 {[%clk 0:02:58.4]} 3... exf6 {[%clk
0:02:53.9]} 4. Nd2 {[%clk 0:02:57.6]} 4... Bd6 {[%clk 0:02:52.5]} 5. e3 {[%clk
0:02:57.3]} 5... O-O {[%clk 0:02:52.3]} 6. Bd3 {[%clk 0:02:55.2]} 6... c6 {[%clk
0:02:51.8]} 7. Ngf3 {[%clk 0:02:51.1]} 7... Nd7 {[%clk 0:02:46.6]} 8. O-O {[%clk
0:02:50.7]} 8... Nb6 {[%clk 0:02:44.3]} 9. c4 {[%clk 0:02:48.2]} 9... dxc4
{[%clk 0:02:44]} 10. Nxc4 {[%clk 0:02:47.6]} 10... Nxc4 {[%clk 0:02:44.4]} 11.
Bxc4 {[%clk 0:02:46.8]} 11... Bf5 {[%clk 0:02:40.9]} 12. a3 {[%clk 0:02:46.3]}
12... Qe7 {[%clk 0:02:37.2]} 13. b4 {[%clk 0:02:45.6]} 13... a5 {[%clk
0:02:32.5]} 14. bxa5 {[%clk 0:02:34.3]} 14... Rxa5 {[%clk 0:02:33.4]} 15. a4
{[%clk 0:02:34]} 15... Rfa8 {[%clk 0:02:32.3]} 16. Qb3 {[%clk 0:02:32.7]} 16...
g6 {[%clk 0:01:53.9]} 17. Nd2 {[%clk 0:02:30.5]} 17... Qc7 {[%clk 0:01:46]} 18.
h3 {[%clk 0:02:28.7]} 18... b5 {[%clk 0:01:41.8]} 19. Be2 {[%clk 0:02:13.5]}
19... Rxa4 {[%clk 0:01:37.6]} 20. Rac1 {[%clk 0:02:12.5]} 20... Qd7 {[%clk
0:01:31.3]} 21. d5 {[%clk 0:02:10.4]} 21... Rb4 {[%clk 0:00:51.4]} 22. dxc6
{[%clk 0:02:03.7]} 22... Qe7 {[%clk 0:00:46.4]} 23. Qd5 {[%clk 0:01:52.2]} 23...
Be6 {[%clk 0:00:36.4]} 24. Qf3 {[%clk 0:01:19.7]} 24... f5 {[%clk 0:00:33]} 25.
c7 {[%clk 0:01:14.6]} 25... Rc8 {[%clk 0:00:32.3]} 26. Rb1 {[%clk 0:01:01.1]}
26... Rxb1 {[%clk 0:00:31.2]} 27. Rxb1 {[%clk 0:00:59.5]} 27... Bxc7 {[%clk
0:00:31.8]} 28. Bxb5 {[%clk 0:00:59.2]} 28... Qd6 {[%clk 0:00:31.8]} 29. Nf1
{[%clk 0:00:58]} 29... Bd5 {[%clk 0:00:32.1]} 30. Qe2 {[%clk 0:00:56.5]} 30...
Rb8 {[%clk 0:00:31.7]} 31. Rd1 {[%clk 0:00:55.4]} 31... Qe5 {[%clk 0:00:31.1]}
32. Bc4 {[%clk 0:00:52.4]} 32... Bc6 {[%clk 0:00:28.4]} 33. Qa2 {[%clk
0:00:50.8]} 33... Rb2 {[%clk 0:00:23.5]} 34. Bxf7+ {[%clk 0:00:46.9]} 34... Kg7
{[%clk 0:00:21.6]} 35. Qc4 {[%clk 0:00:47.3]} 35... Bb5 {[%clk 0:00:17.1]} 36.
Qd5 {[%clk 0:00:43.2]} 36... Bxf1 {[%clk 0:00:16.8]} 37. Kxf1 {[%clk 0:00:38]}
37... Qh2 {[%clk 0:00:15.9]} 38. g3 {[%clk 0:00:30.3]} 38... Qxf2# {[%clk
0:00:15.1]} 0-1